fUSD/lending_fUSD_20240119
["ID","MTS","AMOUNT","RATE_DAILY","PERIOD"]
[312157490,1705673443118,-500.0,0.00021917,2]
[312157492,1705673443127,-777.78,0.00021917,2]
[312157494,1705673443137,-655.17,0.00021917,2]
[312157495,1705673443146,-500.0,0.00021917,2]
[312157496,1705673443155,-500.0,0.00021917,2]
[312157497,1705673443165,-500.0,0.00021917,2]
[312157498,1705673443175,-500.0,0.00021917,2]
[312157499,1705673443184,-500.0,0.00021917,2]
[312157500,1705673443193,-500.0,0.00021917,2]
[312157501,1705673443202,-686.7,0.00021917,2]
[312157502,1705673443212,-672.72,0.00021917,2]
[312157503,1705673443222,-500.0,0.00021917,2]
[312157504,1705673443230,-500.0,0.00021917,2]
[312157505,1705673443240,-500.0,0.00021917,2]
[312157506,1705673443249,-500.0,0.00021917,2]
[312157507,1705673443258,-500.0,0.00021917,2]
[312157508,1705673443268,-500.0,0.00021917,2]
[312157509,1705673443277,-500.0,0.00021917,2]
[312157510,1705673443286,-500.0,0.00021917,2]
[312157512,1705673443295,-500.0,0.00021917,2]
[312157513,1705673443304,-500.0,0.00021917,2]
[312157515,1705673443313,-500.0,0.00021917,2]
[312157516,1705673443322,-500.0,0.00021917,2]
[312157517,1705673443332,-500.0,0.00021917,2]
[312157519,1705673443342,-500.0,0.00021917,2]
[312157521,1705673443352,-640.27,0.00021917,2]
[312157523,1705673443361,-773.68,0.00021917,2]
[312157525,1705673443371,-1000.0,0.00021917,2]
[312157527,1705673443381,-500.0,0.00021917,2]
[312157529,1705673443390,-524.14409376,0.00021917,2]
[312157530,1705673443399,-489.81173385,0.00021917,2]
[312157531,1705673443409,-500.0,0.00021917,2]
[312157532,1705673443418,-500.0,0.00021917,2]
[312157533,1705673443428,-500.0,0.00021917,2]
[312157534,1705673443437,-651.74,0.00021917,2]
[312157535,1705673443447,-500.0,0.00021917,2]
[312157536,1705673443457,-500.0,0.00021917,2]
[312157537,1705673443467,-935.11,0.00021917,2]
[312157538,1705673443477,-308.78888003,0.00021917,2]
[312157539,1705673443486,-654.84,0.00021917,2]
[312157540,1705673443497,-519.36,0.00021917,2]
[312157541,1705673443507,-720.11,0.00021917,2]
[312157542,1705673443518,-500.0,0.00021917,2]
[312157543,1705673443528,-639.3,0.00021917,2]
[312157544,1705673443538,-500.0,0.00021917,2]
[312157545,1705673443547,-500.0,0.00021917,2]
[312157546,1705673443557,-500.0,0.00021917,2]
[312157547,1705673443567,-500.0,0.00021917,2]
[312157548,1705673443576,-500.0,0.00021917,2]
[312157549,1705673443586,-877.14,0.00021917,2]
[312157550,1705673443595,-619.18,0.00021917,2]
[312157551,1705673443605,-500.0,0.00021917,2]
[312157552,1705673443615,-500.0,0.00021917,2]
[312157553,1705673443625,-500.0,0.00021917,2]
[312157554,1705673443634,-1414.25,0.00021917,2]
[312157556,1705673443644,-500.0,0.00021917,2]
[312157557,1705673443653,-500.0,0.00021917,2]
[312157558,1705673443663,-500.0,0.00021917,2]
[312157559,1705673443672,-569.8,0.00021917,2]
[312157560,1705673443681,-500.0,0.00021917,2]
[312157561,1705673443691,-500.0,0.00021917,2]
[312157562,1705673443700,-500.0,0.00021917,2]
[312157563,1705673443709,-500.0,0.00021917,2]
[312157564,1705673443719,-629.53,0.00021917,2]
[312157565,1705673443728,-500.0,0.00021917,2]
[312157566,1705673443739,-500.0,0.00021917,2]
[312157567,1705673443749,-500.0,0.00021917,2]
[312157568,1705673443759,-188.34415171,0.00021917,2]
[312157569,1705673443768,-520.82970207,0.00021917,2]
[312157570,1705673443777,-500.0,0.00021917,2]
[312157571,1705673443786,-500.0,0.00021917,2]
[312157572,1705673443796,-500.0,0.00021917,2]
[312157573,1705673443806,-500.0,0.00021917,2]
[312157574,1705673443815,-500.0,0.00021917,2]
[312157575,1705673443824,-762.44,0.00021917,2]
[312157576,1705673443833,-500.0,0.00021917,2]
[312157577,1705673443843,-500.0,0.00021917,2]
[312157578,1705673443853,-500.0,0.00021917,2]
[312157579,1705673443862,-500.0,0.00021917,2]
[312157580,1705673443872,-513.8,0.00021917,2]
[312157581,1705673443881,-500.0,0.00021917,2]
[312157582,1705673443891,-513.8,0.00021917,2]
[312157583,1705673443900,-500.0,0.00021917,2]
[312157584,1705673443910,-500.0,0.00021917,2]
[312157585,1705673443919,-513.8,0.00021917,2]
[312157586,1705673443929,-513.8,0.00021917,2]
[312157587,1705673443939,-513.8,0.00021917,2]
[312157588,1705673443951,-554.49,0.00021917,2]
[312157589,1705673443961,-1141.46,0.00021917,2]
[312157590,1705673443970,-500.0,0.00021917,2]
[312157591,1705673443979,-500.0,0.00021917,2]
[312157592,1705673443989,-500.0,0.00021917,2]
[312157593,1705673444001,-500.0,0.00021917,2]
[312157594,1705673444012,-500.0,0.00021917,2]
[312157595,1705673444021,-525.62,0.00021917,2]
[312157596,1705673444031,-500.0,0.00021917,2]
[312157597,1705673444041,-500.0,0.00021917,2]
[312157598,1705673444050,-500.0,0.00021917,2]
[312157599,1705673444059,-763.55,0.00021917,2]
[312157600,1705673444068,-513.63,0.00021917,2]
[312157601,1705673444077,-500.0,0.00021917,2]
[312157602,1705673444086,-500.0,0.00021917,2]
[312157603,1705673444095,-508.36386423,0.00021917,2]
[312157604,1705673444106,-500.0,0.00021917,2]
[312157605,1705673444115,-552.13,0.00021917,2]
[312157606,1705673444125,-556.41,0.00021917,2]
[312157607,1705673444134,-1171.7,0.00021917,2]
[312157608,1705673444143,-500.0,0.00021917,2]
[312157609,1705673444153,-500.0,0.00021917,2]
[312157610,1705673444162,-500.0,0.00021917,2]
[312157611,1705673444171,-885.53,0.00021917,2]
[312157612,1705673444181,-500.0,0.00021917,2]
[312157613,1705673444190,-500.0,0.00021917,2]
[312157614,1705673444199,-500.0,0.00021917,2]
[312157615,1705673444209,-976.37,0.00021917,2]
[312157616,1705673444218,-578.45,0.00021917,2]
[312157617,1705673444227,-973.75,0.00021917,2]
[312157618,1705673444236,-500.0,0.00021917,2]
[312157619,1705673444246,-502.23,0.00021917,2]
[312157620,1705673444255,-732.76,0.00021917,2]
[312157621,1705673444265,-500.0,0.00021917,2]
[312157622,1705673444274,-665.65,0.00021917,2]
[312157623,1705673444284,-610.78,0.00021917,2]
[312157624,1705673444294,-559.87,0.00021917,2]
[312157625,1705673444303,-500.0,0.00021917,2]
[312157626,1705673444313,-519.57384596,0.00021917,2]
[312157627,1705673444323,-500.0,0.00021917,2]
[312157628,1705673444332,-500.0,0.00021917,2]
[312157629,1705673444343,-500.0,0.00021917,7]
[312157630,1705673444352,-1003.58,0.00021917,2]
[312157631,1705673444362,-753.45,0.00021917,2]
[312157632,1705673444372,-500.0,0.00021917,2]
[312157633,1705673444382,-1149.83,0.00021917,2]
[312157634,1705673444392,-500.0,0.00021917,2]
[312157635,1705673444402,-500.0,0.00021917,2]
[312157636,1705673444412,-500.0,0.00021917,2]
[312157637,1705673444422,-500.0,0.00021917,2]
[312157638,1705673444431,-500.0,0.00021917,2]
[312157639,1705673444440,-752.88,0.00021917,2]
[312157640,1705673444450,-300.0,0.00021917,2]
[312157641,1705673444460,-525.55536816,0.00021917,2]
[312157642,1705673444470,-956.88,0.00021917,2]
[312157643,1705673444480,-500.0,0.00021917,2]
[312157644,1705673444491,-500.0,0.00021917,2]
[312157645,1705673444502,-957.43,0.00021917,2]
[312157646,1705673444512,-500.0,0.00021917,2]
[312157647,1705673444521,-500.0,0.00021917,2]
[312157648,1705673444531,-500.0,0.00021917,2]
[312157649,1705673444541,-646.27,0.00021917,2]
[312157650,1705673444551,-500.0,0.00021917,2]
[312157651,1705673444561,-500.0,0.00021917,2]
[312157652,1705673444571,-509.82,0.00021917,2]
[312157653,1705673444581,-500.0,0.00021917,2]
[312157654,1705673444591,-500.0,0.00021917,2]
[312157655,1705673444601,-500.0,0.00021917,2]
[312157656,1705673444610,-500.0,0.00021917,2]
[312157657,1705673444620,-500.0,0.00021917,2]
[312157658,1705673444630,-500.0,0.00021917,2]
[312157659,1705673444639,-907.64,0.00021917,2]
[312157660,1705673444648,-500.0,0.00021917,2]
[312157661,1705673444657,-943.39,0.00021917,2]
[312157662,1705673444667,-500.0,0.00021917,2]
[312157663,1705673444676,-944.84,0.00021917,2]
[312157664,1705673444687,-500.0,0.00021917,2]
[312157665,1705673444697,-1129.76,0.00021917,2]
[312157666,1705673444706,-731.48,0.00021917,2]
[312157667,1705673444716,-585.09,0.00021917,2]
[312157668,1705673444726,-610.8,0.00021917,2]
[312157669,1705673444736,-500.0,0.00021917,2]
[312157670,1705673444748,-1053.71,0.00021917,2]
[312157671,1705673444757,-500.0,0.00021917,2]
[312157672,1705673444767,-500.0,0.00021917,2]
[312157673,1705673444777,-1183.46,0.00021917,2]
[312157674,1705673444786,-500.0,0.00021917,2]
[312157675,1705673444795,-839.97,0.00021917,2]
[312157676,1705673444805,-710.72,0.00021917,2]
[312157677,1705673444814,-500.0,0.00021917,2]
[312157678,1705673444824,-2404.65,0.00021917,2]
[312157679,1705673444833,-1106.07,0.00021917,2]
[312157680,1705673444842,-500.0,0.00021917,2]
[312157681,1705673444852,-635.55,0.00021917,2]
[312157682,1705673444861,-500.0,0.00021917,2]
[312157683,1705673444871,-733.79,0.00021917,2]
[312157684,1705673444880,-529.51982035,0.00021917,2]
[312157685,1705673444890,-500.0,0.00021917,2]
[312157686,1705673444899,-500.0,0.00021917,2]
[312157687,1705673444908,-500.0,0.00021917,2]
[312157688,1705673444918,-500.0,0.00021917,2]
[312157689,1705673444927,-590.44,0.00021917,2]
[312157690,1705673444936,-2138.94,0.00021917,2]
[312157691,1705673444945,-500.0,0.00021917,2]
[312157692,1705673444957,-1204.52,0.00021917,2]
[312157693,1705673444967,-500.0,0.00021917,2]
[312157694,1705673444976,-500.0,0.00021917,2]
[312157695,1705673444985,-1015.21,0.00021917,2]
[312157696,1705673444996,-500.0,0.00021917,2]
[312157697,1705673445006,-500.0,0.00021917,2]
[312157698,1705673445015,-500.0,0.00021917,2]
[312157699,1705673445024,-500.0,0.00021917,2]
[312157700,1705673445034,-500.0,0.00021917,2]
[312157701,1705673445043,-500.0,0.00021917,2]
[312157702,1705673445053,-964.03,0.00021917,2]
[312157703,1705673445062,-838.2,0.00021917,2]
[312157704,1705673445072,-500.0,0.00021917,2]
[312157705,1705673445082,-887.74,0.00021917,2]
[312157706,1705673445091,-500.0,0.00021917,2]
[312157707,1705673445100,-594.81,0.00021917,2]
[312157708,1705673445109,-500.0,0.00021917,2]
[312157709,1705673445119,-500.0,0.00021917,2]
[312157710,1705673445128,-500.0,0.00021917,2]
[312157711,1705673445137,-500.0,0.00021917,2]
[312157712,1705673445147,-500.0,0.00021917,2]
[312157713,1705673445156,-515.55,0.00021917,2]
[312157714,1705673445165,-661.64,0.00021917,2]
[312157715,1705673445174,-500.0,0.00021917,2]
[312157716,1705673445185,-500.0,0.00021917,2]
[312157717,1705673445195,-500.0,0.00021917,2]
[312157718,1705673445204,-651.67,0.00021917,2]
[312157719,1705673445213,-884.36,0.00021917,2]
[312157720,1705673445223,-500.0,0.00021917,2]
[312157721,1705673445232,-500.0,0.00021917,2]
[312157722,1705673445242,-731.43,0.00021917,2]
[312157723,1705673445251,-612.55,0.00021917,2]
[312157724,1705673445261,-500.0,0.00021917,2]
[312157725,1705673445271,-500.0,0.00021917,2]
[312157726,1705673445281,-775.08,0.00021917,2]
[312157727,1705673445290,-500.0,0.00021917,2]
[312157728,1705673445299,-500.0,0.00021917,2]
[312157729,1705673445309,-592.53,0.00021917,2]
[312157730,1705673445319,-500.0,0.00021917,2]
[312157731,1705673445329,-513.49231395,0.00021917,2]
[312157732,1705673445338,-957.4,0.00021917,2]
[312157733,1705673445346,-500.0,0.00021917,2]
[312157734,1705673445356,-500.0,0.00021917,2]
[312157735,1705673445366,-508.06069637,0.00021917,2]
[312157736,1705673445376,-500.0,0.00021917,2]
[312157737,1705673445385,-1134.65,0.00021917,2]
[312157738,1705673445394,-676.39,0.00021917,2]
[312157739,1705673445404,-1695.84,0.00021917,2]
[312157740,1705673445414,-500.0,0.00021917,2]
[312157741,1705673445423,-500.0,0.00021917,2]
[312157742,1705673445432,-664.19,0.00021917,2]
[312157743,1705673445442,-500.0,0.00021917,2]
[312157744,1705673445452,-500.0,0.00021917,2]
[312157745,1705673445461,-500.0,0.00021917,2]
[312157746,1705673445472,-500.0,0.00021917,2]
[312157747,1705673445481,-500.0,0.00021917,2]
[312157748,1705673445507,-500.0,0.00021917,2]
[312157749,1705673445519,-804.51,0.00021917,2]
[312157750,1705673445540,-2109.06,0.00021917,2]
[312157751,1705673445550,-807.1,0.00021917,2]
[312157752,1705673445559,-1000.89,0.00021917,2]
[312157753,1705673445569,-500.0,0.00021917,2]
[312157754,1705673445579,-500.0,0.00021917,2]
[312157755,1705673445588,-564.8,0.00021917,2]
[312157756,1705673445598,-1172.19,0.00021917,2]
[312157757,1705673445607,-969.21,0.00021917,2]
[312157758,1705673445617,-500.0,0.00021917,2]
[312157759,1705673445629,-602.84,0.00021917,2]
[312157760,1705673445643,-500.0,0.00021917,2]
[312157761,1705673445662,-500.0,0.00021917,2]
[312157762,1705673445672,-1959.03,0.00021917,2]
[312157763,1705673445681,-500.0,0.00021917,2]
[312157764,1705673445690,-500.0,0.00021917,2]
[312157765,1705673445699,-1654.9,0.00021917,2]
[312157766,1705673445709,-500.0,0.00021917,2]
[312157767,1705673445718,-3245.13,0.00021917,2]
[312157768,1705673445727,-500.0,0.00021917,2]
[312157769,1705673445737,-639.63,0.00021917,2]
[312157770,1705673445747,-500.0,0.00021917,2]
[312157771,1705673445757,-922.33,0.00021917,2]
[312157772,1705673445766,-1467.01,0.00021917,2]
[312157773,1705673445777,-500.0,0.00021917,2]
[312157774,1705673445787,-851.34,0.00021917,2]
[312157775,1705673445796,-944.72,0.00021917,2]
[312157776,1705673445806,-500.0,0.00021917,2]
[312157777,1705673445815,-500.0,0.00021917,2]
[312157778,1705673445825,-6358.64,0.00021917,2]
[312157779,1705673445834,-1277.86,0.00021917,2]
[312157780,1705673445844,-228.39,0.00021917,2]
[312157781,1705673445853,-500.0,0.00021917,2]
[312157782,1705673445862,-500.0,0.00021917,2]
[312157783,1705673445872,-500.0,0.00021917,2]
[312157785,1705673445882,-500.0,0.00021917,2]
[312157788,1705673445893,-500.0,0.00021917,2]
[312157791,1705673445903,-500.0,0.00021917,2]
[312157794,1705673445913,-1843.62,0.00021917,2]
[312157798,1705673445925,-1038.66,0.00021917,2]
[312157800,1705673445968,-500.0,0.00021917,2]
[312157804,1705673445979,-500.0,0.00021917,2]
[312157807,1705673445990,-1787.47,0.00021917,2]
[312157809,1705673446000,-1723.42,0.00021917,2]
[312157811,1705673446010,-766.66,0.00021917,2]
[312157813,1705673446020,-860.57,0.00021917,2]
[312157816,1705673446030,-500.0,0.00021917,2]
[312157818,1705673446040,-1489.45,0.00021917,2]
[312157821,1705673446051,-1636.94,0.00021917,2]
[312157823,1705673446061,-1260.89,0.00021917,2]
[312157825,1705673446071,-1353.06,0.00021917,5]
[312157827,1705673446082,-500.0,0.00021917,2]
[312157829,1705673446091,-500.0,0.00021917,2]
[312157831,1705673446101,-1741.96,0.00021917,2]
[312157833,1705673446111,-500.0,0.00021917,2]
[312157834,1705673446120,-2437.39,0.00021917,2]
[312157835,1705673446131,-2607.51,0.00021917,2]
[312157836,1705673446141,-500.0,0.00021917,2]
[312157837,1705673446281,-500.0,0.00021917,2]
[312157838,1705673446291,-500.0,0.00021917,2]
[312157839,1705673446301,-500.0,0.00021917,2]
[312157840,1705673446311,-500.0,0.00021917,2]
[312157841,1705673446320,-500.0,0.00021917,2]
[312157842,1705673446330,-500.0,0.00021917,2]
[312157843,1705673446340,-500.0,0.00021917,2]
[312157844,1705673446350,-2618.51,0.00021917,2]
[312157845,1705673446359,-500.0,0.00021917,2]
[312157846,1705673446369,-1141.08,0.00021917,2]
[312157847,1705673446379,-500.0,0.00021917,2]
[312157848,1705673446389,-500.0,0.00021917,2]
[312157849,1705673446399,-953.38,0.00021917,2]
[312157850,1705673446409,-1368.1,0.00021917,2]
[312157851,1705673446419,-500.0,0.00021917,2]
[312157852,1705673446428,-538.17,0.00021917,2]
[312157853,1705673446438,-500.0,0.00021917,2]
[312157854,1705673446448,-500.0,0.00021917,2]
[312157855,1705673446457,-500.0,0.00021917,2]
[312157856,1705673446467,-500.0,0.00021917,2]
[312157857,1705673446477,-500.0,0.00021917,2]
[312157858,1705673446487,-500.0,0.00021917,2]
[312157859,1705673446497,-500.0,0.00021917,2]
[312157860,1705673446507,-500.0,0.00021917,2]
[312157861,1705673446517,-6032.42,0.00021917,2]
[312157862,1705673446527,-500.0,0.00021917,2]
[312157864,1705673446537,-475.54746274,0.00021917,2]
[312157866,1705673446548,-962.32,0.00021917,2]
[312157867,1705673446557,-500.0,0.00021917,2]
[312157869,1705673446567,-4068.53,0.00021917,2]
[312157870,1705673446577,-500.0,0.00021917,2]
[312157871,1705673446587,-500.0,0.00021917,2]
[312157872,1705673446598,-1049.77,0.00021917,2]
[312157873,1705673446608,-8327.73,0.00021917,2]
[312157874,1705673446618,-649.47,0.00021917,2]
[312157875,1705673446627,-527.42660139,0.00021917,2]
[312157876,1705673446636,-624.28,0.00021917,2]
[312157877,1705673446646,-500.0,0.00021917,2]
[312157878,1705673446655,-500.0,0.00021917,2]
[312157879,1705673446665,-1850.3,0.00021917,2]
[312157880,1705673446674,-500.0,0.00021917,2]
[312157881,1705673446686,-527.85681623,0.00021917,2]
[312157882,1705673446696,-605.41,0.00021917,2]
[312157883,1705673446706,-2352.46,0.00021917,2]
[312157884,1705673446716,-500.0,0.00021917,2]
[312157885,1705673446725,-3311.03,0.00021917,2]
[312157886,1705673446734,-500.0,0.00021917,2]
[312157887,1705673446745,-903.29,0.00021917,2]
[312157888,1705673446755,-500.0,0.00021917,2]
[312157889,1705673446765,-10438.87,0.00021917,2]
[312157891,1705673446776,-792.08,0.00021917,2]
[312157893,1705673446786,-500.0,0.00021917,2]
[312157895,1705673446796,-3188.18,0.00021917,2]
[312157897,1705673446806,-1563.62,0.00021917,2]
[312157899,1705673446816,-1823.52,0.00021917,2]
[312157901,1705673446827,-500.0,0.00021917,2]
[312157903,1705673446837,-979.74,0.00021917,2]
[312157905,1705673446847,-500.0,0.00021917,2]
[312157907,1705673446856,-500.0,0.00021917,2]
[312157909,1705673446866,-500.0,0.00021917,2]
[312157910,1705673446876,-5071.79,0.00021917,2]
[312157911,1705673446886,-500.0,0.00021917,2]
[312157912,1705673446896,-500.0,0.00021917,2]
[312157913,1705673446906,-500.0,0.00021917,2]
[312157915,1705673446916,-500.0,0.00021917,2]
[312157917,1705673446926,-500.0,0.00021917,2]
[312157919,1705673446936,-500.0,0.00021917,2]
[312157921,1705673446947,-500.0,0.00021917,2]
[312157923,1705673446959,-1002.48,0.00021917,2]
[312157924,1705673446969,-622.94,0.00021917,2]
[312157926,1705673446978,-6141.09961296,0.00021917,2]
[312157929,1705673447674,-1233.86748,0.00021917,2]
[312157930,1705673447686,-1267.65875993,0.00021917,2]
[312157931,1705673447698,-261.99999998,0.00021917,2]
[312157932,1705673447733,-698.04764279,0.00019666,2]
[312157933,1705673447744,-1302.19185721,0.00021917,2]
[312157934,1705673447786,-11863.04228992,0.00021917,2]
[312157935,1705673447796,-500.0,0.00021917,2]
[312157936,1705673447806,-1591.98,0.00021917,2]
[312157937,1705673447817,-2328.9,0.00021917,2]
[312157938,1705673447827,-500.0,0.00021917,2]
[312157939,1705673447837,-2961.89,0.00021917,2]
[312157940,1705673447848,-1489.79,0.00021917,2]
[312157941,1705673447857,-500.0,0.00021917,2]
[312157942,1705673447867,-781.85,0.00021917,2]
[312157943,1705673447878,-819.93,0.00021917,2]
[312157944,1705673447888,-500.0,0.00021917,2]
[312157945,1705673447898,-1080.74,0.00021917,2]
[312157946,1705673447909,-619.37,0.00021917,2]
[312157947,1705673447920,-2054.89230792,0.00021917,2]
[312157948,1705673447934,-1749.66769208,0.00021917,2]
[312157949,1705673447945,-500.0,0.00021917,2]
[312157950,1705673447958,-1627.69062438,0.00021917,2]
[312157951,1705673448092,-140.68937562,0.00021917,2]
[312157952,1705673448102,-500.0,0.00021917,2]
[312157953,1705673448112,-626.56,0.00021917,2]
[312157954,1705673448122,-500.0,0.00021917,2]
[312157955,1705673448132,-500.0,0.00021917,2]
[312157956,1705673448142,-806.76,0.00021917,2]
[312157957,1705673448152,-500.0,0.00021917,2]
[312157958,1705673448162,-1316.84,0.00021917,2]
[312157959,1705673448172,-500.0,0.00021917,2]
[312157960,1705673448182,-2168.42,0.00021917,2]
[312157961,1705673448195,-519.15,0.00021917,2]
[312157962,1705673448206,-1425.21,0.00021917,2]
[312157963,1705673448216,-500.0,0.00021917,2]
[312157964,1705673448226,-500.0,0.00021917,2]
[312157965,1705673448235,-500.0,0.00021917,2]
[312157966,1705673448246,-16193.34,0.00021917,2]
[312157967,1705673448255,-547.5,0.00021917,2]
[312157968,1705673448265,-500.0,0.00021917,2]
[312157969,1705673448275,-500.0,0.00021917,2]
[312157970,1705673448286,-860.33,0.00021917,2]
[312157971,1705673448296,-500.0,0.00021917,2]
[312157972,1705673448306,-2161.74,0.00021917,2]
[312157973,1705673448316,-827.34,0.00021917,2]
[312157974,1705673448326,-2206.42,0.00021917,2]
[312157975,1705673448766,-500.0,0.00021917,2]
[312157976,1705673448808,-2502.13,0.00021917,2]
[312157977,1705673448819,-500.0,0.00021917,2]
[312157978,1705673448830,-500.0,0.00021917,2]
[312157979,1705673448840,-1405.64,0.00021917,2]
[312157980,1705673448851,-5665.06,0.00021917,2]
[312157981,1705673448862,-544.11860398,0.00021917,2]
[312157982,1705673448872,-500.0,0.00021917,2]
[312157983,1705673448882,-500.0,0.00021917,2]
[312157984,1705673448893,-646.02,0.00021917,2]
[312157985,1705673448903,-500.0,0.00021917,2]
[312157986,1705673448914,-941.69,0.00021917,2]
[312157987,1705673448925,-1186.21,0.00021917,2]
[312157988,1705673448935,-3031.73,0.00021917,2]
[312157989,1705673448947,-500.0,0.00021917,2]
[312157990,1705673448958,-500.0,0.00021917,2]
[312157991,1705673448968,-996.35,0.00021917,2]
[312157992,1705673448978,-500.0,0.00021917,2]
[312157993,1705673448989,-908.02,0.00021917,2]
[312157994,1705673449000,-500.0,0.00021917,2]
[312157995,1705673449010,-500.0,0.00021917,2]
[312157996,1705673449020,-1386.07,0.00021917,2]
[312157997,1705673449032,-12799.82,0.00021917,2]
[312157998,1705673449042,-626.59,0.00021917,2]
[312157999,1705673449052,-553.37,0.00021917,2]
[312158000,1705673449063,-6113.32,0.00021917,2]
[312158001,1705673449073,-1307.27,0.00021917,2]
[312158002,1705673449084,-707.23,0.00021917,2]
[312158003,1705673449095,-1468.01,0.00021917,2]
[312158004,1705673449105,-538.68,0.00021917,2]
[312158005,1705673449115,-500.0,0.00021917,2]
[312158006,1705673449127,-1136.95,0.00021917,2]
[312158007,1705673449137,-500.0,0.00021917,2]
[312158008,1705673449148,-858.96,0.00021917,2]
[312158009,1705673449158,-520.6,0.00021917,2]
[312158010,1705673449168,-1043.93,0.00021917,2]
[312158011,1705673449178,-500.0,0.00021917,2]
[312158012,1705673449189,-536.57,0.00021917,2]
[312158013,1705673449201,-500.0,0.00021917,2]
[312158014,1705673449211,-500.0,0.00021917,2]
[312158015,1705673449222,-1422.62,0.00021917,2]
[312158016,1705673449232,-1537.09,0.00021917,2]
[312158017,1705673449245,-500.0,0.00021917,2]
[312158018,1705673449255,-1752.61,0.00021917,2]
[312158019,1705673449265,-558.27,0.00021917,2]
[312158020,1705673449276,-500.0,0.00021917,2]
[312158021,1705673449286,-2118.65,0.00021917,2]
[312158022,1705673449296,-1415.64,0.00021917,2]
[312158023,1705673449306,-500.0,0.00021917,2]
[312158024,1705673449316,-11111.56,0.00021917,2]
[312158025,1705673449326,-500.0,0.00021917,2]
[312158026,1705673449336,-1231.0,0.00021917,2]
[312158027,1705673449347,-500.0,0.00021917,2]
[312158028,1705673449357,-500.0,0.00021917,2]
[312158029,1705673449368,-998.37,0.00021917,2]
[312158030,1705673449378,-3204.76,0.00021917,2]
[312158031,1705673449389,-500.0,0.00021917,2]
[312158032,1705673449400,-1066.74,0.00021917,2]
[312158033,1705673449411,-1010.47,0.00021917,2]
[312158034,1705673449421,-783.09,0.00021917,2]
[312158035,1705673449431,-500.0,0.00021917,2]
[312158036,1705673449441,-500.0,0.00021917,2]
[312158037,1705673449451,-2570.48,0.00021917,2]
[312158038,1705673449462,-640.49,0.00021917,2]
[312158039,1705673449472,-500.0,0.00021917,2]
[312158040,1705673449482,-500.0,0.00021917,2]
[312158041,1705673449492,-538.59,0.00021917,2]
[312158042,1705673449503,-1216.59,0.00021917,2]
[312158043,1705673449514,-1489.02,0.00021917,2]
[312158044,1705673449524,-720.67,0.00021917,2]
[312158045,1705673449535,-854.54,0.00021917,2]
[312158046,1705673449550,-500.0,0.00021917,2]
[312158047,1705673449560,-786.19,0.00021917,2]
[312158048,1705673449571,-500.0,0.00021917,2]
[312158049,1705673449582,-500.0,0.00021917,2]
[312158050,1705673449593,-500.0,0.00021917,2]
[312158051,1705673449604,-1499.97,0.00021917,2]